Workbook

Sheet Model
A2: Model

Sheet Sequences
B1: TP Sequence | C1: Set temperature, pressure, fO2 conditions
A2: T1 | B2: 900
A3: T2 | B3: 750
A4: ΔT | B4: 1
A5: T unit | B5: 1
A6: P1 | B6: 200
A7: P2 | B7: 200
A8: ΔP | B8: 25
A9: P unit
A10: fO2 | B10: 0
B22: HP Sequence | C22: Set temperature, pressure, fO2 conditions above, ΔH below (always use unconstrained fO2)
A23: H1
A24: H2
A25: ΔH | B25: 0.1
A26: H unit | B26: kJ
B32: TV Sequence | C32: Set temperature, pressure, fO2 conditions above, ΔV below (always use unconstrained fO2)
A33: V1
A34: V2
A35: ΔV | B35: 0
A36: V unit | B36: cm3
B42: SP Sequence | C42: Set T1, pressure, fO2 conditions above, ΔS below (always use unconstrained fO2)
A43: S1 | B43: 0
A44: S2
A45: ΔS | B45: 0
A46: S unit | B46: J/K

Sheet Input
B1: Composition | D1: System | F1: Unit | H1: System | I1: =SUM(I2:I4) -> 104.8707227
A2: SiO2 | B2: 74.39 | D2: P | E2: 200 | H2: Liquid | I2: =Results!C2 -> 103.8566246 | J2: =I2/I$1 -> 0.9903300172
A3: TiO2 | B3: 0.18 | D3: T | E3: 800 | H3: Solids | I3: =SUM(Results!E2:Q2)-I4 -> 1.014098085 | J3: =I3/I$1 -> 0.009669982804
A4: Al2O3 | B4: 13.55 | D4: log fO2 | E4: 0 | H4: Water | I4: =IFERROR(HLOOKUP(H4,Results!1:2,2,0),0) -> 0 | J4: =I4/I$1 -> 0
A5: Fe2O3 | B5: 0.360480705
A6: Cr2O3 | H6: Phase | I6: Mass | J6: Formula
A7: FeO | B7: 0.9756354922 | H7: liquid | I7: 103.8566246 | J7: SiO2 0.71 TiO2 0.00 Al2O3 0.13 Fe2O3 0.00 FeO 0.01 MgO 0.00 CaO 0.01 Na2O 0.03 K2O 0.05 H2O 0.05
A8: MnO | H8: orthopyroxene | I8: 1.014098085 | J8: opx Na0.00Ca0.03Fe''0.82Mg1.11Fe'''0.01Ti0.00Al0.06Si1.96O6
A9: MgO | B9: 0.5
A10: NiO | H10: Potential Phase | I10: Affinity (kJ) | J10: Formula
A11: CoO | H11: feldspar | I11: 0.4655264347 | J11: K0.00Na0.71Ca0.29Al1.29Si2.71O8
A12: CaO | B12: 1.43 | H12: water | I12: 0.5505401893 | J12: H2O
A13: Na2O | B13: 3.36 | H13: quartz | I13: 0.7165949247 | J13: SiO2
A14: K2O | B14: 5.09 | H14: clinopyroxene | I14: 2.046671063 | J14: cpx Na0.00Ca0.90Fe''-0.0Mg0.80Fe'''0.33Ti0.09Al0.38Si1.56O6
A15: P2O5 | H15: tridymite | I15: 2.883492684 | J15: SiO2
A16: H2O | B16: 5.04 | H16: spinel | I16: 2.888525215 | J16: Fe''0.31Mg0.69Fe'''0.44Al1.38Cr0.17Ti0.00O4
A17: CO2 | H17: cristobalite | I17: 2.933532792 | J17: SiO2
A18: SO3 | H18: olivine | I18: 4.001328212 | J18: (Ca-0.0Mg-0.0Fe''-0.0Mn0.34Co0.34Ni0.34)2SiO4
A19: Cl2O-1 | H19: rhm-oxide | I19: 4.08669481 | J19: Mn0.05Fe''0.00Mg0.79Fe'''0.31Al0.00Ti0.85O3
A20: F2O-1 | H20: garnet | I20: 10.08046776 | J20: (Ca0.22Fe''0.78Mg0.00)3Al2Si3O12
D21: Success: Equilibrate | H21: rutile | I21: 10.72058905 | J21: TiO2
H22: fayalite | I22: 10.76274204 | J22: Fe2SiO4
D23: =INDEX(aux!P4:P7,aux!P3) -> rhyolite-MELTS_v1.0.x | H23: cummingtonite | I23: 11.57053828 | J23: (Fe''0.00Mg1.00)7Si8O22(OH)2
H24: sphene | I24: 13.64157848 | J24: CaTiSiO5
H25: corundum | I25: 14.61460398 | J25: Al2O3
H26: sillimanite | I26: 15.00973566 | J26: Al2SiO5
H27: hornblende | I27: 22.83225486 | J27: NaCa2Mg3.97Fe2+0.03Al1.00Fe3+0.00Al2Si6O22(OH)2
H28: ortho-oxide | I28: 25.19252462 | J28: Fe''0.04Mg0.00Fe'''1.92Ti1.04O5
H29: perovskite | I29: 26.76799107 | J29: CaTiO3
H30: muscovite | I30: 28.92894949 | J30: KAl2Si3AlO10(OH)2
H31: melilite | I31: 39.99937123 | J31: Na0.00Ca2.00Al0.76Mg0.09Fe0.53Si1.62O7
H32: nepheline | I32: 48.12664815 | J32: neph Na0.20K3.74Ca0.00[]0.06Al3.94Si4.06O16
H33: aenigmatite | I33: 57.06161701 | J33: Na2Fe5TiSi6O20
H34: alloy-solid | I34: 67.25581085 | J34: solid Fe1.00Ni0.00
H35: alloy-liquid | I35: 71.7427447 | J35: liquid Fe1.00Ni0.00
H36: aegirine | I36: 159.7428113 | J36: NaFeSi2O6

Sheet Results
B1: system | C1: liquid | D1: solids(+water) | E1: orthopyroxene
A2: mass (g) | B2: 104.8707227 | C2: 103.8566246 | D2: 1.014098085 | E2: 1.014098085
A3: ρ (g/cm3) | B3: 2.224845125 | C3: 2.21705587 | D3: 3.475290078 | E3: 3.475290078
A4: G (kJ) | B4: -1711.148395 | C4: -1697.339738 | D4: -13.80865738 | E4: -13.80865738
A5: H (kJ) | B5: -1420.899409 | C5: -1409.25473 | D5: -11.64467892 | E5: -11.64467892
A6: S (J/K) | B6: 270.4645078 | C6: 268.4480344 | D6: 2.016473426 | E6: 2.016473426
A7: Cp (J/K) | B7: 141.6576819 | C7: 140.4898572 | D7: 1.167824677 | E7: 1.167824677
A8: V (cm3) | B8: 47.13619006 | C8: 46.84438763 | D8: 0.2918024286 | E8: 0.2918024286
A9: α (1/K) | B9: 0.000141683058 | C9: 0.0001422955999 | D9: 4.334888578e-05 | E9: 4.334888578e-05
A10: β (1/bar) | B10: 1.694624829e-05 | C10: 1.704629359e-05 | D10: 8.855154486e-07 | E10: 8.855154486e-07
A11: SiO2 | B11: =IF(Input!B2="",IF(OR(Input!A2="Fe2O3",Input!A2="FeO"),0,""),Input!B2/SUM(Input!B$2:B$20)*100) -> 70.93130705 | C11: 71.12157688 | D11: =IF(C11="","",IFERROR((B11*B$2-C11*C$2)/(B$2-C$2),0)) -> 51.44524036 | E11: 51.82249211
A12: TiO2 | B12: =IF(Input!B3="",IF(OR(Input!A3="Fe2O3",Input!A3="FeO"),0,""),Input!B3/SUM(Input!B$2:B$20)*100) -> 0.1716310696 | C12: 0.1731598469 | D12: =IF(C12="","",IFERROR((B12*B$2-C12*C$2)/(B$2-C$2),0)) -> 0.01506470982 | E12: 0.01597753837
A13: Al2O3 | B13: =IF(Input!B4="",IF(OR(Input!A4="Fe2O3",Input!A4="FeO"),0,""),Input!B4/SUM(Input!B$2:B$20)*100) -> 12.92000552 | C13: 13.03297988 | D13: 1.349984266 | E13: 1.418699971
A14: Fe2O3 | B14: =IF(Input!B5="",IF(OR(Input!A5="Fe2O3",Input!A5="FeO"),0,""),Input!B5/SUM(Input!B$2:B$20)*100) -> 0.3437204943 | C14: 0.2909556647 | D14: 5.747514444 | E14: 0.4408243217
A15: Cr2O3 | B15: =IF(Input!B6="",IF(OR(Input!A6="Fe2O3",Input!A6="FeO"),0,""),Input!B6/SUM(Input!B$2:B$20)*100) -> 
A16: FeO | B16: =IF(Input!B7="",IF(OR(Input!A7="Fe2O3",Input!A7="FeO"),0,""),Input!B7/SUM(Input!B$2:B$20)*100) -> 0.9302742394 | C16: 0.7335460178 | D16: 21.07776229 | E16: 25.85937315
A17: MnO | B17: =IF(Input!B8="",IF(OR(Input!A8="Fe2O3",Input!A8="FeO"),0,""),Input!B8/SUM(Input!B$2:B$20)*100) -> 
A18: MgO | B18: =IF(Input!B9="",IF(OR(Input!A9="Fe2O3",Input!A9="FeO"),0,""),Input!B9/SUM(Input!B$2:B$20)*100) -> 0.4767529712 | C18: 0.289294338 | D18: 19.67491652 | E18: 19.67745216
A19: NiO | B19: =IF(Input!B10="",IF(OR(Input!A10="Fe2O3",Input!A10="FeO"),0,""),Input!B10/SUM(Input!B$2:B$20)*100) -> 
A20: CoO | B20: =IF(Input!B11="",IF(OR(Input!A11="Fe2O3",Input!A11="FeO"),0,""),Input!B11/SUM(Input!B$2:B$20)*100) -> 
A21: CaO | B21: =IF(Input!B12="",IF(OR(Input!A12="Fe2O3",Input!A12="FeO"),0,""),Input!B12/SUM(Input!B$2:B$20)*100) -> 1.363513497 | C21: 1.369615876 | D21: 0.7385518275 | E21: 0.7458037432
A22: Na2O | B22: =IF(Input!B13="",IF(OR(Input!A13="Fe2O3",Input!A13="FeO"),0,""),Input!B13/SUM(Input!B$2:B$20)*100) -> 3.203779966 | C22: 3.235040145 | D22: 0.002337539329 | E22: 0.01937700558
A23: K2O | B23: =IF(Input!B14="",IF(OR(Input!A14="Fe2O3",Input!A14="FeO"),0,""),Input!B14/SUM(Input!B$2:B$20)*100) -> 4.853345246 | C23: 4.900987318 | D23: -0.02581276287
A24: P2O5 | B24: =IF(Input!B15="",IF(OR(Input!A15="Fe2O3",Input!A15="FeO"),0,""),Input!B15/SUM(Input!B$2:B$20)*100) -> 
A25: H2O | B25: =IF(Input!B16="",IF(OR(Input!A16="Fe2O3",Input!A16="FeO"),0,""),Input!B16/SUM(Input!B$2:B$20)*100) -> 4.805669949 | C25: 4.852844025 | D25: -0.02555919938
A26: CO2 | B26: =IF(Input!B17="",IF(OR(Input!A17="Fe2O3",Input!A17="FeO"),0,""),Input!B17/SUM(Input!B$2:B$20)*100) -> 

Sheet Phases
A1: Phases (check to include) | E1: 1

Sheet Tools

Sheet Multiple_Comp
B1: TP_Seq | C1: HP_Seq | D1: SP_Seq | E1: P_Calc
A2: SiO2 | B2: 74.39 | C2: 74.39 | D2: 74.39 | E2: 74.39
A3: TiO2 | B3: 0.18 | C3: 0.18 | D3: 0.18 | E3: 0.18
A4: Al2O3 | B4: 13.55 | C4: 13.55 | D4: 13.55 | E4: 13.55
A5: Fe2O3 | B5: 0.3478866523 | C5: 0.3478866523 | D5: 0.3478866523 | E5: 0.3478866523
A6: Cr2O3
A7: FeO | B7: 0.9826920021 | C7: 0.9826920021 | D7: 0.9826920021 | E7: 0.9826920021
A8: MnO
A9: MgO | B9: 0.5 | C9: 0.5 | D9: 0.5 | E9: 0.5
A10: NiO
A11: CoO
A12: CaO | B12: 1.43 | C12: 1.43 | D12: 1.43 | E12: 1.43
A13: Na2O | B13: 3.36 | C13: 3.36 | D13: 3.36 | E13: 3.36
A14: K2O | B14: 5.09 | C14: 5.09 | D14: 5.09 | E14: 5.09
A15: P2O5
A16: H2O | B16: 5.45 | C16: 5.45 | D16: 8.66 | E16: 10
A17: CO2
A18: SO3
A19: Cl2O-1
A20: F2O-1
A22: Model | B22: rhyolite-MELTS_v1.0.x | C22: rhyolite-MELTS_v1.0.x | D22: rhyolite-MELTS_v1.0.x | E22: rhyolite-MELTS_v1.0.x
A23: Calculation | B23: TP_Sequence | C23: HP_Sequence | D23: SP_Sequence | E23: QF_P_Calc
A24: T1 | B24: 845 | C24: 845 | D24: 850 | E24: 1100
A25: T2 | B25: 745 | C25: 745 | D25: 850 | E25: 700
A26: ΔT | B26: 1 | C26: 1 | D26: 1 | E26: 1
A27: T unit | B27: C | C27: C | D27: C | E27: C
A28: P1 | B28: 200 | C28: 200 | D28: 400 | E28: 400
A29: P2 | B29: 200 | C29: 200 | D29: 10 | E29: 25
A30: ΔP | B30: 25 | C30: 25 | D30: 5 | E30: 25
A31: P unit | B31: MPa | C31: MPa | D31: MPa | E31: MPa
A32: fO2 offset | B32: 0 | C32: 0 | D32: 0 | E32: 0
A33: fO2 buffer | B33: NNO | C33: NNO | D33: NNO | E33: NNO
A34: fO2 constraint | B34: TRUE | C34: FALSE | D34: FALSE | E34: TRUE
A35: ΔH | B35: 0.2 | C35: 0.2 | D35: 0.2 | E35: 0.2
A36: ΔV | B36: 0 | C36: 0 | D36: 0 | E36: 0
A37: ΔS | B37: 0 | C37: 0 | D37: 0 | E37: 0

Sheet aux (hidden)
A1: Input P | B1: Input T | C1: Input fO2 | D1: Input constraint | F1: PT_seq P | G1: PT_seq T | H1: PT_seq fO2 | I1: PT_seq constraint | K1: aegirine | L1: TRUE | N1: SiO2 | P1: Model | R1: CalcType | S1: T unit | T1: P unit | U1: fO2 buffers
A2: 1 | B2: 1 | C2: 2 | F2: 1 | G2: 1 | H2: 2 | K2: aenigmatite | L2: TRUE | N2: TiO2
A3: 1 | B3: 1 | C3: 2 | D3: TRUE | F3: 1 | G3: 1 | H3: 2 | I3: TRUE | K3: alloy-liquid | L3: TRUE | N3: Al2O3 | P3: 1
A4: MPa | B4: °C | C4: log10 | F4: MPa | G4: °C | H4: log10 | K4: alloy-solid | L4: TRUE | N4: Fe2O3 | P4: rhyolite-MELTS_v1.0.x | R4: QF_P_Calc | S4: C | T4: MPa | U4: =RIGHT(H5,LEN(H5)-1) -> NNO
A5: bar | B5: K | C5: ΔNNO | F5: bar | G5: K | H5: ΔNNO | K5: amphibole | L5: FALSE | N5: Cr2O3 | P5: rhyolite-MELTS_v1.1.x | R5: TP_Sequence | S5: K | T5: bar | U5: =RIGHT(H6,LEN(H6)-1) -> QFM
A6: kbar | C6: ΔQFM | F6: kbar | H6: ΔQFM | K6: apatite | L6: TRUE | N6: FeO | P6: rhyolite-MELTS_v1.2.x | R6: HP_Sequence | T6: kbar | U6: =RIGHT(H7,LEN(H7)-1) -> HM
C7: ΔHM | H7: ΔHM | K7: biotite | L7: FALSE | N7: MnO | P7: pMELTS_v5.6.1 | R7: TV_Sequence | U7: =RIGHT(H8,LEN(H8)-1) -> IW
C8: ΔIW | H8: ΔIW | K8: clinopyroxene | L8: TRUE | N8: MgO | R8: SP_Sequence
K9: corundum | L9: TRUE | N9: NiO | R9: Draw_Phase_Diagram
K10: cristobalite | L10: TRUE | N10: CoO
K11: cummingtonite | L11: TRUE | N11: CaO
K12: fayalite | L12: TRUE | N12: Na2O
K13: feldspar | L13: TRUE | N13: K2O
K14: garnet | L14: TRUE | N14: P2O5
K15: hornblende | L15: TRUE | N15: H2O
K16: kalsilite | L16: TRUE | N16: CO2
K17: leucite | L17: FALSE | N17: SO3
K18: melilite | L18: TRUE | N18: Cl2O-1
K19: muscovite | L19: TRUE | N19: F2O-1
K20: nepheline | L20: TRUE
K21: olivine | L21: TRUE
K22: ortho-oxide | L22: TRUE
K23: orthopyroxene | L23: TRUE
K24: perovskite | L24: TRUE
K25: quartz | L25: TRUE
K26: rhm-oxide | L26: TRUE
K27: rutile | L27: TRUE
K28: sillimanite | L28: TRUE
K29: sphene | L29: TRUE
K30: spinel | L30: TRUE
K31: tridymite | L31: TRUE
K32: water | L32: TRUE
K33: whitlockite | L33: TRUE
K34: fluid | L34: TRUE
K35: calcite | L35: TRUE
K36: aragonite | L36: TRUE
K37: magnesite | L37: TRUE
K38: siderite | L38: TRUE
K39: dolomite | L39: TRUE
K40: spurrite | L40: TRUE
K41: tilleyite | L41: TRUE
K42: diamond | L42: TRUE
K43: graphite | L43: TRUE
